bitfinex/quotes_ETHUSD_20250616
["timestamp","ask_amount","ask_price","bid_price","bid_amount"]
[1750113773085,14.556856,2593.1,2592.2,8.152]
[1750113773338,3.85738666,2592.5,2592.2,8.152]
[1750113773621,3.85715857,2592.6,2592.2,8.152]
[1750113773824,0.04822208,2592.5,2592.2,8.152]
[1750113774008,3.85724703,2592.6,2592.2,8.152]
[1750113774201,0.04822329,2592.5,2592.3,3.85755358]
[1750113774399,14.556856,2592.1,2591.1,0.04]
[1750113774721,11.567,2591.6,2591.1,0.04]
[1750113774901,0.0482437,2591.5,2591.1,0.04]
[1750113775496,0.0482437,2591.5,2591.2,12.0112113]
[1750113775820,0.04824032,2591.8,2591.2,8.152]
[1750113776022,10.04823196,2592.1,2591.6,3.8586061]
[1750113776184,13.85781227,2592.2,2591.3,3.85906687]
[1750113776391,0.04823201,2592.1,2591.3,3.85906687]
[1750113776698,10.0,2592.3,2591.6,3.85853763]
[1750113777022,3.85816328,2592.0,2591.3,3.85895557]
[1750113777196,0.0482377,2591.9,2591.2,8.152]
[1750113777397,0.0482377,2592.2,2591.4,3.85880224]
[1750113777715,13.857464,2592.4,2591.8,3.85829658]
[1750113777896,13.857464,2592.4,2591.2,8.152]
[1750113777897,0.04823144,2592.3,2591.3,1.5509]
[1750113778102,0.04823144,2592.3,2591.8,3.8582418]
[1750113778326,0.04823144,2592.3,2592.0,3.85797447]
[1750113778488,0.04823144,2592.3,2592.2,3.85772702]
[1750113778688,0.04822584,2593.0,2591.8,10.178]
[1750113778942,3.90490513,2593.0,2591.5,3.85876905]
[1750113779232,3.8571855,2592.6,2591.4,3.85884949]
[1750113779390,0.04822721,2592.5,2591.6,3.8585357]
[1750113779589,10.0,2592.4,2591.6,3.8585543]
[1750113779789,10.0,2592.4,2591.3,1.5509]
[1750113779790,3.90585505,2592.3,2591.7,3.85845823]
[1750113780001,0.04823164,2592.3,2591.3,5.40993019]
[1750113780196,0.04823164,2592.3,2591.3,5.40989912]
[1750113780446,0.04823164,2592.3,2591.3,1.5509]
[1750113780665,0.04823164,2592.3,2591.2,8.152]
[1750113780666,10.0,2592.1,2591.2,8.152]
[1750113780803,3.8592158,2591.2,2591.1,0.04]
[1750113780999,18.3234158,2591.2,2591.1,0.04]
[1750113781254,18.3234158,2591.2,2589.6,0.005]
[1750113781255,11.2494,2589.9,2589.6,0.005]
[1750113781555,11.2494,2589.9,2587.5,8.153]
[1750113781556,29.66845281,2589.2,2587.5,8.153]
[1750113781758,28.42054505,2588.2,2586.4,8.153]
[1750113781910,16.865856,2588.1,2586.4,8.153]
[1750113782110,18.42203843,2587.2,2586.4,8.153]
[1750113782308,26.182456,2587.2,2587.1,0.36267117]
[1750113782514,29.041456,2587.2,2587.1,0.36267117]
[1750113782711,1.6256,2587.2,2587.1,0.36267117]
[1750113782910,0.04833197,2587.2,2587.1,0.36267117]
[1750113783326,5.15912749,2588.7,2587.1,0.36267117]
[1750113783327,1.6256,2588.6,2587.1,1.89037117]
[1750113783527,0.04831923,2588.5,2587.2,9.9550169]
[1750113783729,0.04831923,2588.5,2588.4,3.86339051]
[1750113784057,14.556856,2590.2,2588.4,8.48050912]
[1750113784358,11.664,2590.3,2588.6,3.86309201]
[1750113784359,0.04,2589.9,2588.6,3.86309201]
[1750113784507,0.04,2589.9,2588.7,0.32247174]
[1750113785013,10.0,2589.7,2588.7,0.32247174]
[1750113785213,0.04828937,2589.6,2588.7,0.32247174]
[1750113785527,0.04,2589.9,2588.3,8.158]
[1750113785729,14.556856,2589.7,2589.1,3.8623345]
[1750113786058,0.04827911,2589.6,2588.6,3.8630005]
[1750113786374,0.04827055,2589.5,2588.2,9.6633]
[1750113786518,10.0,2589.3,2588.2,9.6633]
[1750113786715,21.5773,2589.1,2588.2,8.159]
[1750113787046,2.5039679,2589.2,2587.1,0.04]
[1750113787047,11.5773,2588.1,2587.1,0.04]
[1750113787258,10.0,2587.7,2587.2,0.3226587]
[1750113787435,0.04831962,2587.6,2587.2,0.3226587]
[1750113787640,10.0,2587.5,2587.1,0.04]
[1750113787840,0.04831736,2587.4,2587.1,0.04]
[1750113788375,0.04831994,2587.7,2587.1,0.04]
[1750113788523,14.556856,2587.4,2587.1,0.04]
[1750113788724,0.04832641,2587.3,2587.1,0.04]
[1750113788976,1.624,2588.7,2587.3,1.6171]
[1750113789272,14.556856,2588.5,2587.4,8.159]
[1750113789487,3.86398651,2588.1,2587.4,8.159]
[1750113789626,14.60516696,2588.0,2587.1,0.04]
[1750113789828,9.6323582,2588.6,2587.1,0.04]
[1750113790131,0.55,2588.3,2587.1,0.04]
[1750113790333,3.86473902,2587.5,2587.1,0.04]
[1750113790635,0.04832332,2587.4,2587.2,3.86518243]
[1750113790833,3.86479034,2587.5,2587.1,0.04]
[1750113791147,0.04832452,2587.4,2587.3,3.86503304]
[1750113791329,1.5173,2588.7,2588.2,3.86361952]
[1750113791529,1.5173,2588.7,2587.1,0.04]
[1750113791530,14.556856,2588.5,2587.9,8.162]
[1750113791737,10.0,2588.3,2587.9,8.162]
[1750113791956,0.04830607,2588.2,2587.9,8.162]
[1750113792160,10.04830607,2588.2,2587.9,8.162]
[1750113792480,3.86398763,2588.0,2587.9,8.162]
[1750113792694,10.04830931,2588.0,2587.9,8.162]
[1750113792864,1.29380636,2588.0,2587.9,8.162]
[1750113793190,10.0,2588.1,2587.9,8.162]
[1750113793364,10.0,2588.1,2587.5,3.86468392]
[1750113793684,0.0483079,2588.0,2587.1,8.204]
[1750113794092,10.0,2588.3,2587.1,8.204]
[1750113794258,10.0,2588.1,2587.6,3.86449268]
[1750113794459,10.0,2588.8,2587.1,8.204]
[1750113794656,14.556856,2588.5,2587.5,3.86472952]
[1750113794875,0.04830104,2588.4,2588.0,3.86395125]
[1750113795160,0.04830104,2588.4,2588.0,3.86385007]
[1750113795354,0.04830104,2588.4,2587.3,3.86503304]
[1750113795584,0.04830104,2588.4,2588.3,3.86353977]
[1750113795770,11.5296,2589.8,2588.5,3.86324125]
[1750113795972,0.04827933,2589.7,2589.2,3.86210524]
[1750113796171,0.04827933,2589.7,2589.4,3.86179995]
[1750113796385,3.90983788,2589.7,2588.1,3.86373716]
[1750113796559,10.04827933,2589.7,2588.5,3.86324125]
[1750113796899,10.04827933,2589.7,2588.0,21.3485582]
[1750113796900,3.86155338,2589.7,2589.0,3.86248703]
[1750113797099,3.86155338,2589.7,2588.0,11.7162]
[1750113797100,10.0,2589.5,2588.5,3.86324125]
[1750113797299,0.04828136,2589.4,2588.7,3.86284563]
[1750113797459,0.04828136,2589.4,2588.3,12.02745112]
[1750113797460,11.5346,2589.3,2588.3,8.164]
[1750113797659,0.55,2589.1,2588.3,8.164]
[1750113797873,0.04829746,2589.0,2588.3,8.164]
[1750113798281,3.91084663,2589.0,2588.3,12.02740808]
[1750113798478,0.04829746,2589.0,2588.5,3.86313651]
[1750113798660,0.04829746,2589.0,2588.3,8.164]
[1750113799197,0.04829212,2589.2,2588.6,3.86300602]
[1750113799382,0.04829212,2589.2,2588.3,12.02740252]
[1750113799383,3.86243478,2589.1,2588.5,3.86319936]
[1750113799592,0.04829148,2589.0,2588.6,3.86305068]
[1750113799757,0.04829148,2589.0,2588.3,8.164]
[1750113799958,3.86332589,2588.5,2588.3,8.164]
[1750113800176,0.04829742,2588.4,2588.3,8.164]
[1750113800599,0.04829741,2588.5,2588.3,8.164]
[1750113800798,0.04829604,2588.9,2588.3,8.164]
[1750113801116,10.0,2588.2,2587.1,0.04]
[1750113801316,10.0,2588.2,2587.6,3.86453925]
[1750113801317,0.04831093,2588.1,2587.6,3.86453925]
[1750113801913,0.04831093,2588.1,2587.1,12.06929026]
[1750113801914,0.04831093,2588.1,2587.1,8.204]
[1750113802114,3.91125854,2588.7,2587.3,3.86503304]
[1750113802314,0.0483047,2588.7,2587.5,3.86473429]
[1750113802530,10.04829311,2589.2,2587.6,1.5752]
[1750113802746,14.556856,2589.2,2588.7,3.86292611]
[1750113802946,3.86283136,2588.8,2588.3,8.165]
[1750113803261,0.04829324,2588.7,2588.3,8.165]
[1750113803420,10.0,2589.0,2588.3,8.165]
[1750113803421,10.04829607,2588.9,2588.3,8.165]
[1750113803612,1.5039,2589.3,2588.3,8.165]
[1750113803613,2.44867821,2588.8,2588.3,8.165]
[1750113803807,2.44867821,2588.8,2587.1,3.90532563]
[1750113803808,16.060756,2588.3,2587.1,0.04]
[1750113804009,10.55,2587.8,2587.1,0.04]
[1750113804208,3.86386635,2588.1,2587.3,3.86494231]
[1750113804209,0.04832362,2587.7,2587.3,3.86494231]
[1750113804444,0.04831342,2588.0,2587.1,0.04]
[1750113804645,0.0483127,2588.2,2587.2,1.5752]
[1750113805031,10.0,2588.5,2587.2,5.44034498]
[1750113805250,0.04830055,2588.4,2588.0,3.86388279]
[1750113805546,0.04829719,2588.6,2587.2,1.5752]
[1750113805752,1.44508512,2589.8,2587.2,1.5752]
[1750113805753,0.04829583,2588.8,2587.2,15.07270761]
[1750113805913,0.0482896,2589.0,2588.9,3.86264436]
[1750113806114,0.04828714,2589.8,2588.9,8.165]
[1750113806346,14.556856,2589.7,2588.9,8.165]
[1750113806654,3.86249517,2589.0,2588.9,8.165]
[1750113806857,13.86249517,2589.0,2588.9,8.165]
[1750113807412,2.42375013,2589.6,2588.9,8.165]
[1750113807631,0.04828538,2589.8,2589.2,3.86207087]
[1750113807835,0.08827365,2589.9,2589.2,1.5174]
[1750113808079,3.86217601,2589.3,2588.9,8.165]
[1750113808246,3.91059883,2589.2,2588.9,8.165]
[1750113808446,3.86249517,2589.0,2588.9,8.165]
[1750113808676,0.04828538,2589.0,2588.9,8.165]
[1750113808846,10.0,2589.4,2588.9,8.165]
[1750113809170,10.129,2589.9,2588.9,8.165]
[1750113809171,0.04,2589.9,2589.4,3.86181085]
[1750113809371,0.08826915,2589.9,2589.3,3.86198496]
[1750113809570,10.08826915,2589.9,2589.4,3.86178271]
[1750113809868,0.04,2589.9,2589.8,3.86130203]
[1750113810273,100.0,2590.0,2589.9,3.86115294]
[1750113810444,94.3335,2590.0,2589.9,3.86115294]
[1750113811778,60.76017558,2590.0,2589.9,14.90915294]
[1750113811938,33.16291727,2590.0,2589.9,14.90915294]
[1750113812138,0.04,2590.9,2590.8,3.85981164]
[1750113812392,0.04,2592.9,2591.7,3.85834072]
[1750113812593,0.04822035,2592.8,2591.5,10.084]
[1750113812892,1.17042035,2593.1,2591.6,0.41037442]
[1750113813179,14.556856,2593.4,2591.8,3.8583224]
[1750113813478,14.556856,2593.4,2591.2,0.55]
[1750113813479,14.556856,2592.9,2591.0,0.3738]
[1750113813679,14.556856,2592.7,2591.4,3.85887103]
[1750113813882,0.04270109,2592.6,2591.8,3.8582183]
[1750113814041,0.04270109,2592.8,2591.8,3.85832032]
[1750113814375,0.04270109,2592.8,2591.3,10.079]
[1750113814376,0.04270109,2592.8,2591.5,4.23256905]
[1750113814682,5.31613973,2593.3,2592.7,3.856942]
[1750113814683,0.04270109,2593.3,2592.7,3.856942]
[1750113814976,0.04270109,2593.3,2592.5,8.16]
[1750113815193,0.04270109,2593.8,2592.5,8.5338]
[1750113815338,0.43649497,2593.8,2592.5,8.5338]
[1750113815539,0.43649497,2593.8,2593.1,3.85637955]
[1750113815735,0.04270109,2593.8,2593.2,3.85623023]
[1750113815949,0.04,2593.9,2592.5,8.5338]
[1750113816149,0.08270109,2593.9,2592.5,8.5338]
[1750113816476,5.49053376,2593.7,2591.8,0.3738]
[1750113816774,10.0,2593.4,2591.8,0.3738]
[1750113816950,3.85648254,2593.1,2591.9,0.03857066]
[1750113817150,0.04270109,2593.5,2592.1,9.6323582]
[1750113817374,1.635,2593.7,2592.1,9.6323582]
[1750113817375,0.04270109,2593.6,2592.1,9.6323582]
[1750113817577,0.04270109,2593.6,2592.7,3.85684615]
[1750113817578,3.85587134,2593.5,2592.7,3.85684615]
[1750113817737,0.04270109,2593.4,2592.8,3.85673541]
[1750113817937,0.04270109,2593.4,2592.8,3.85679018]
[1750113818357,0.04270109,2593.4,2592.7,8.157]
[1750113818558,3.85580846,2593.5,2592.7,8.157]
[1750113818559,3.8556943,2593.6,2592.7,8.157]
[1750113818779,0.04270109,2593.5,2592.9,3.85656613]
[1750113818994,1.635,2593.7,2593.0,3.85651787]
[1750113818995,0.04270109,2593.6,2593.0,3.85651787]
[1750113819366,0.04270109,2593.6,2592.7,8.157]
[1750113819565,1.635,2593.7,2592.7,8.157]
[1750113819792,1.635,2593.7,2593.1,3.85628918]
[1750113819990,1.635,2593.7,2593.2,3.85622768]
[1750113820193,1.635,2593.7,2593.1,3.85634547]
[1750113820502,0.04,2593.9,2593.4,3.8558476]
[1750113820709,0.04,2593.9,2593.0,3.85653682]
[1750113820710,0.08270109,2593.9,2593.0,3.85653682]
[1750113821005,0.04,2593.9,2593.8,3.85534736]
[1750113821656,0.04,2593.9,2593.8,3.89389472]
[1750113821854,0.04,2593.9,2593.8,14.33069472]
[1750113822116,0.04,2593.9,2593.8,14.67449065]
[1750113822260,0.04,2594.9,2594.8,3.85386156]
[1750113822453,0.04,2594.9,2594.8,12.00886156]
[1750113823304,0.04,2594.9,2594.8,12.38266156]
[1750113823515,0.04,2594.9,2594.8,22.44066156]
[1750113824100,0.04,2594.9,2594.8,22.99066156]
[1750113824295,0.04,2595.9,2595.8,3.85237691]
[1750113825375,0.00946246,2595.9,2595.8,3.89088711]
[1750113825569,0.00946246,2595.9,2595.8,3.85237691]
[1750113826370,0.00946246,2595.9,2595.8,13.90137691]
[1750113826575,0.04,2596.9,2596.8,3.8508934]
[1750113826777,0.04,2596.9,2596.8,22.08539385]
[1750113826980,0.04,2596.9,2596.8,22.0468934]
[1750113827272,0.04,2596.9,2596.8,11.9988934]
[1750113827475,0.04,2596.9,2596.8,8.148]
[1750113828230,0.04,2596.9,2596.8,11.9988934]
[1750113828390,0.04,2596.9,2596.8,8.148]
[1750113829270,0.04,2596.9,2596.8,11.9988934]
[1750113830983,0.04,2596.9,2596.8,22.0368934]
[1750113831720,0.04,2596.9,2596.8,11.9988934]
[1750113832417,0.04,2596.9,2596.8,22.0298934]
[1750113833879,0.04,2596.9,2596.8,8.148]
[1750113834096,3.89074511,2596.9,2596.8,8.148]
[1750113834295,0.59743392,2596.9,2596.8,8.148]
[1750113834509,0.59743392,2596.9,2596.8,11.9988934]
[1750113834510,0.04,2596.9,2596.8,11.9988934]
[1750113836133,0.04,2596.9,2596.8,12.3726934]
[1750113836438,0.04,2597.9,2597.8,3.84941104]
[1750113836598,0.04,2597.9,2597.8,14.24521104]
[1750113837049,0.04,2598.9,2598.8,3.84792981]
[1750113837250,0.04,2598.9,2598.8,22.00892981]
[1750113838060,0.04,2598.9,2598.8,22.38272981]
[1750113838352,0.2162978,2599.6,2599.5,3.84689363]
[1750113838514,0.2162978,2599.6,2599.5,14.23669363]
[1750113838852,0.2162978,2599.6,2599.5,14.23569363]
[1750113839012,0.2162978,2599.6,2599.5,3.84689363]
[1750113839403,0.2162978,2599.6,2599.3,10.013]
[1750113839603,0.2162978,2599.6,2599.1,10.013]
[1750113839840,0.2162978,2599.6,2599.0,10.013]
[1750113840253,0.2162978,2599.6,2599.5,3.84689363]
[1750113840750,0.2162978,2599.6,2598.6,3.84815352]
[1750113840751,14.556856,2599.1,2597.1,0.04]
[1750113840921,1.5419,2598.1,2597.1,0.04]
[1750113841117,10.0,2597.7,2597.1,0.04]
[1750113841318,3.85014553,2597.4,2597.1,0.04]
[1750113841553,13.85030032,2597.2,2597.1,0.04]
[1750113841754,3.85030032,2597.2,2597.1,0.04]
[1750113841924,3.85178337,2596.2,2595.1,8.5888]
[1750113842126,0.04270109,2596.2,2595.1,18.98564487]
[1750113842343,3.89448446,2596.2,2595.1,18.5938]
[1750113842523,28.45134046,2596.2,2595.1,0.04]
[1750113842725,13.85178337,2596.2,2595.1,0.04]
[1750113842964,29.94800771,2596.2,2595.1,0.04]
[1750113843164,10.0,2595.7,2595.1,0.04]
[1750113843367,1.53936834,2596.2,2595.1,0.04]
[1750113843368,3.85134402,2596.5,2595.2,3.85326757]
[1750113843567,19.6323582,2596.9,2595.4,3.85297064]
[1750113843568,1.5828,2596.9,2595.4,3.85297064]
[1750113843752,14.556856,2596.8,2595.6,3.85267375]
[1750113843954,3.85000385,2597.4,2595.9,0.4538]
[1750113844260,1.6613,2597.5,2595.9,0.4538]
[1750113844261,0.04270109,2597.3,2596.0,8.137]
[1750113844449,5.51120306,2597.5,2596.0,8.137]
[1750113844450,0.04270109,2597.4,2596.1,10.003]
[1750113844656,1.6613,2597.5,2596.1,10.003]
[1750113844868,1.6613,2597.5,2596.3,3.85163501]
[1750113845027,1.6613,2598.0,2596.4,3.88994322]
[1750113845362,1.6613,2598.0,2597.6,3.8495646]
[1750113845664,1.6613,2598.0,2597.5,3.84974244]
[1750113845665,0.04,2597.9,2597.5,3.84974244]
[1750113845964,0.04,2597.9,2597.8,3.84941104]
[1750113846667,0.04,2597.9,2597.8,3.88788878]
[1750113846961,0.04,2597.9,2597.8,3.84941104]
[1750113847373,0.04,2597.9,2597.2,18.133]
[1750113847539,0.04,2597.9,2597.7,3.8495458]
[1750113847772,0.04,2597.9,2597.2,8.137]
[1750113848070,14.556856,2597.8,2597.3,3.85011767]
[1750113848225,1.5066568,2597.7,2597.5,3.84974131]
[1750113848425,0.08270109,2597.9,2597.2,8.137]
[1750113848872,0.08270109,2597.9,2597.3,3.85015208]
[1750113849075,0.08270109,2597.9,2596.3,8.136]
[1750113849284,14.556856,2597.8,2596.4,0.03850448]
[1750113849434,0.04,2597.9,2596.6,1.6519]
[1750113849640,0.04,2597.9,2596.5,9.991]
[1750113849641,3.84984397,2597.6,2596.5,9.991]
[1750113849845,0.04,2597.9,2596.5,9.991]
[1750113849846,0.04270109,2597.7,2596.5,9.991]
[1750113850145,3.84951342,2597.8,2597.2,3.85028789]
[1750113850340,10.0,2597.6,2596.3,8.136]
[1750113850541,0.04,2597.9,2596.4,0.03850401]
[1750113850741,0.04,2597.9,2597.3,3.85012416]
[1750113851098,0.04,2597.9,2596.9,9.989]
[1750113851265,0.04,2597.9,2597.8,3.84941104]
[1750113851626,0.04,2597.9,2597.5,11.98680917]
[1750113851869,0.04,2597.9,2597.5,8.137]
[1750113851870,3.84950364,2597.8,2597.5,8.137]
[1750113852068,1.65670109,2597.7,2597.5,8.137]
[1750113852369,3.85014407,2597.4,2596.4,8.137]
[1750113852553,0.04270109,2597.3,2596.7,3.8509015]
[1750113852781,3.84972172,2597.6,2596.4,8.137]
[1750113852782,24.59955709,2597.6,2596.4,8.137]
[1750113852955,0.9186695,2597.5,2596.5,0.0385079]
[1750113853158,3.85020997,2597.3,2596.6,3.85107045]
[1750113853356,10.0,2597.6,2596.6,0.32149064]
[1750113853567,3.85015208,2597.3,2596.6,4.17266089]
[1750113853771,0.04270109,2597.3,2597.1,3.85037647]
[1750113853950,0.04270109,2597.6,2596.6,0.32149064]
[1750113854145,3.85013487,2597.4,2596.7,3.85095196]
[1750113854352,0.04270109,2597.3,2596.7,0.32147826]
[1750113854667,1.614,2597.7,2597.5,3.84984764]
[1750113854996,1.614,2597.7,2597.6,3.84970742]
[1750113855150,1.614,2597.7,2596.7,10.30247826]
[1750113855151,1.614,2597.7,2597.0,3.85046738]
[1750113855346,1.614,2597.7,2597.1,0.03850146]
[1750113855563,0.08270109,2597.9,2597.2,10.30041637]
[1750113855564,0.04,2597.9,2597.2,10.30041637]
[1750113855878,5.5096843,2597.7,2597.2,0.32141637]
[1750113856076,0.59366952,2597.6,2597.2,0.32141637]
[1750113856378,4.40015208,2597.3,2597.2,0.32141637]
[1750113856677,3.89285317,2597.3,2597.2,0.32141637]
[1750113857045,14.44285317,2597.3,2597.2,0.32141637]
[1750113857246,0.55,2596.9,2596.4,8.137]
[1750113857484,3.85133834,2596.5,2596.4,8.137]
[1750113857647,3.85133834,2596.5,2593.8,3.85534683]
[1750113857648,1.56240109,2596.5,2595.9,3.85222415]
[1750113857849,10.0,2596.6,2595.2,8.136]
[1750113857850,0.87731375,2596.7,2595.8,3.85237691]
[1750113858166,5.41308865,2597.0,2595.7,3.85252533]
[1750113858365,3.4887513,2597.0,2595.6,9.974]
[1750113858663,3.4887513,2597.0,2596.5,3.8513212]
[1750113858862,1.56240109,2597.0,2595.6,9.974]
[1750113859068,1.56240109,2597.0,2596.3,3.85151712]
[1750113859380,3.8934649,2596.9,2596.3,3.85159205]
[1750113859585,0.8764527,2597.2,2596.2,3.85178337]
[1750113859733,0.8764527,2597.2,2596.4,8.137]
[1750113859734,0.04270109,2597.2,2596.4,8.137]
[1750113859940,0.55,2596.8,2596.4,8.137]
[1750113860140,0.04270109,2596.7,2596.4,8.137]
[1750113860394,1.56240109,2596.9,2596.4,7.137]
[1750113860567,3.85112562,2596.7,2596.4,7.137]
[1750113860890,5.41315987,2596.9,2595.5,3.85271083]
[1750113860891,0.04270109,2596.6,2596.3,3.85158894]
[1750113861049,0.04270109,2596.6,2596.1,3.85187089]
[1750113861250,0.04270109,2596.6,2595.4,8.137]
[1750113861251,3.85167977,2596.3,2595.7,3.85248057]
[1750113861486,0.04270109,2596.2,2595.4,8.137]
[1750113861653,3.8941385,2596.5,2595.9,3.85216056]
[1750113861855,3.85183708,2596.2,2595.6,3.85258824]
[1750113862180,3.89472877,2596.1,2595.5,3.85274077]
[1750113862482,3.89472877,2596.1,2595.6,3.85266297]
[1750113862483,0.04270109,2596.1,2595.6,3.85266297]
[1750113862810,0.04270109,2596.1,2595.4,8.137]
[1750113862811,3.85247887,2595.8,2595.4,8.137]
[1750113862950,3.85207178,2596.1,2595.4,8.137]
[1750113862951,0.04270109,2595.7,2595.4,8.137]
[1750113863156,1.5624,2595.5,2595.1,0.04]
[1750113863344,13.85326757,2595.2,2595.1,0.04]
[1750113863539,1.5624,2594.2,2593.6,3.85562695]
[1750113863739,0.55,2595.0,2593.3,3.85604889]
[1750113863740,0.04270109,2594.8,2594.7,3.85401009]
[1750113863951,0.59270109,2594.8,2594.7,3.85401009]
[1750113864151,0.04270109,2595.4,2594.1,1.99540047]
[1750113864351,3.85362136,2595.0,2594.4,3.85435567]
[1750113864549,3.85333344,2595.2,2594.5,0.03853531]
[1750113864550,10.0,2595.2,2594.5,0.03853531]
[1750113864750,3.85413396,2594.7,2594.1,0.36180047]
[1750113864963,11.5624,2594.5,2594.2,0.32178806]
[1750113865189,14.40460432,2594.3,2594.2,0.32178806]
[1750113865386,10.0,2594.3,2594.2,0.32178806]
[1750113865541,13.85460432,2594.3,2594.2,0.32178806]
[1750113865741,14.40460432,2594.3,2594.2,0.32178806]
[1750113866766,14.40475291,2594.2,2594.1,0.04]
[1750113866971,24.11157909,2594.2,2594.1,0.04]
[1750113867140,24.11157909,2594.2,2593.1,3.89637256]
[1750113867141,21.81922618,2594.2,2593.1,0.04]
[1750113867344,1.6299,2593.4,2593.1,0.04]
[1750113867572,0.04270109,2593.3,2593.1,0.04]
[1750113867784,1.6299,2593.4,2593.1,0.04]
[1750113868017,0.04270109,2593.3,2593.1,0.04]
[1750113868328,1.6299,2593.4,2593.1,0.04]
[1750113868472,0.04270109,2593.3,2593.1,0.04]
[1750113868896,1.6299,2593.4,2593.1,0.04]
[1750113869097,0.04270109,2593.5,2593.1,0.04]
[1750113869098,0.04270109,2593.3,2593.1,0.04]
[1750113869296,0.04270109,2593.5,2593.1,0.04]
[1750113869633,4.40597778,2593.4,2593.1,0.04]
[1750113869789,14.40623939,2593.2,2593.1,0.04]
[1750113870323,15.91703939,2593.2,2593.1,0.04]
[1750113870676,25.32203939,2593.2,2593.1,0.04]
[1750113870873,35.57886557,2593.2,2593.1,0.04]
[1750113871273,35.57886557,2593.2,2592.1,0.04]
[1750113871274,5.44442702,2592.2,2592.1,0.04]
[1750113871676,6.03712811,2592.2,2592.1,0.04]
[1750113872019,1.62940109,2592.2,2592.1,0.04]
[1750113872315,15.48712811,2592.2,2592.1,0.04]
[1750113872528,3.85891925,2591.4,2591.1,0.04]
[1750113872824,4.4092158,2591.2,2591.1,0.04]
[1750113873030,3.8592158,2591.2,2591.1,0.04]
[1750113873329,4.40936474,2591.1,2590.1,0.03]
[1750113873625,9.70682618,2591.5,2590.1,0.03]
[1750113873626,1.5491,2592.8,2591.0,3.8595137]
[1750113873830,1.5491,2592.8,2591.8,3.8583137]
[1750113873992,1.5491,2592.8,2591.1,8.18657887]
[1750113873993,14.556856,2592.6,2591.1,8.148]
[1750113874327,1.5491,2592.1,2591.1,8.148]
[1750113874534,0.04270109,2592.0,2591.2,0.03859037]
[1750113874670,0.04270109,2592.0,2591.2,0.03858339]
[1750113874875,0.04270109,2592.0,2591.6,3.85857356]
[1750113875089,0.04270109,2592.0,2591.1,8.148]
[1750113875384,3.85898368,2591.4,2591.1,8.148]
[1750113875589,0.55,2591.8,2590.4,5.47928112]
[1750113875820,3.90121888,2591.7,2591.0,3.8595137]
[1750113875984,0.04270109,2591.7,2591.3,3.85893463]
[1750113876181,0.04270109,2591.7,2591.6,3.85862015]
[1750113876421,1.5491,2592.1,2591.8,3.85821521]
[1750113876622,0.04270109,2592.2,2592.1,3.85787585]
[1750113876826,0.04270109,2592.5,2591.3,3.85906687]
[1750113876997,3.85745134,2592.4,2591.8,3.85823018]
[1750113877186,0.15475019,2592.3,2591.2,13.63785299]
[1750113877392,0.15475019,2592.3,2587.1,0.04]
[1750113877393,3.86473429,2587.5,2587.1,0.04]
[1750113877623,3.86473429,2587.5,2585.1,1.6687]
[1750113877624,1.582,2586.1,2583.9,0.0888814]
[1750113877788,3.859783,2585.9,2584.0,0.01539883]
[1750113878015,3.859783,2585.7,2583.9,0.05428023]
[1750113878356,3.859783,2585.5,2584.1,0.27304578]
[1750113878552,3.859783,2585.3,2584.1,0.27304578]
[1750113878709,3.859783,2585.9,2584.1,0.27304578]
[1750113878916,3.859783,2585.7,2584.1,0.27304578]
[1750113879167,3.859783,2585.5,2584.1,0.27304578]
[1750113879379,0.04834963,2585.4,2584.1,0.27304578]
[1750113879512,3.859783,2585.7,2584.1,0.27304578]
[1750113879711,0.04834732,2585.6,2584.1,0.27304578]
[1750113879950,3.859783,2585.5,2584.1,0.27304578]
[1750113880162,13.56660918,2584.6,2584.1,0.27304578]
[1750113880473,13.56660918,2584.6,2583.1,0.04]
[1750113880474,3.53245699,2584.4,2583.1,0.04]
[1750113880680,13.58082722,2584.3,2583.1,0.04]
[1750113880886,3.58083695,2584.2,2583.1,0.04]
[1750113881163,3.53245699,2584.1,2583.1,0.04]
[1750113881324,3.53245699,2583.9,2583.2,8.157]
[1750113881522,3.53245699,2583.7,2583.2,8.157]
[1750113881871,3.53245699,2584.7,2583.2,8.157]
[1750113882078,3.53245699,2584.7,2581.9,0.5]
[1750113882079,3.53245699,2584.7,2577.0,6.78047513]
[1750113882080,1.511,2579.4,2577.0,6.78047513]
[1750113882299,0.5,2582.2,2576.2,13.64214713]
[1750113882300,0.5,2578.5,2577.2,1.5975]
[1750113882451,3.4696861,2579.0,2577.3,0.32389811]
[1750113882766,0.5,2578.4,2577.3,0.27389811]
[1750113883008,3.4696861,2578.9,2577.3,0.27389811]
[1750113883219,0.5,2578.6,2577.3,0.27389811]
[1750113883375,3.4696861,2578.1,2577.3,0.27389811]
[1750113883574,3.4696861,2578.6,2577.3,0.27389811]
[1750113883797,0.37082556,2578.5,2577.4,11.289]
[1750113883983,3.4696861,2578.3,2577.1,8.163]
[1750113884186,0.5,2577.9,2577.1,8.163]
[1750113884385,3.4696861,2577.8,2576.2,1.6413]
[1750113884703,3.4696861,2577.0,2575.6,0.38844721]
[1750113885013,0.32234162,2577.7,2575.1,12.409]
[1750113885014,3.4696861,2576.2,2575.1,0.04]
[1750113885187,0.87086992,2576.2,2575.1,0.04]
[1750113885384,4.34055602,2576.2,2575.1,0.04]
[1750113885635,3.79202772,2576.2,2575.1,0.04]
[1750113886130,0.32234162,2576.2,2576.1,0.24170734]
[1750113886273,3.79202862,2576.2,2576.1,0.24170734]
[1750113886468,0.32234162,2576.2,2576.1,0.24170734]
[1750113886749,0.32234162,2576.2,2576.1,8.41570734]
[1750113886910,3.77450762,2576.2,2576.1,0.24170734]
[1750113887092,3.77450762,2576.2,2575.1,0.04]
[1750113887093,3.21045866,2575.2,2575.1,0.04]
[1750113887295,3.21045866,2575.2,2574.1,0.04]
[1750113887296,3.71045866,2574.4,2574.1,0.04]